Cogmind - Beta 11.1 @@@ ROGUE MODE // 2022.05.26 @ 23:02:42 Player: theq629 Result: Self-destructed Performance ------------- Evolutions (1) 500 Regions Visited (2) 400 Robots Destroyed (14) 70 Value Destroyed (416) 416 Prototype IDs (0) 0 Alien Tech Used (0) 0 Bonus (0) 0 TOTAL SCORE: 1386 Bonus ------- None Cogmind --------- Core Integrity 382/400 Matter 242/300 Energy 92/180 System Corruption 5% Temperature Warning (341) Movement Walking (190) Ox1 Location -9/Materials Parts ------- > --- POWER (2) -------- Light Deuterium Engine Light Deuterium Engine > --- PROPULSION (2) --- Aluminum Leg Aluminum Leg > --- UTILITY (3) ------ Small Storage Unit Terrain Scanner Improved Targeting Computer > --- WEAPON (2) ------- Spread Laser Spread Laser > --- INVENTORY (8) ---- Ion Engine Light Ion Engine Aluminum Leg Aluminum Leg Small Laser Minigun Grenade Launcher Peak State ------------ > --- POWER ------------ Light Deuterium Engine Light Deuterium Engine > --- PROPULSION ------- Cesium-ion Thruster Cesium-ion Thruster > --- UTILITY ---------- Small Storage Unit Signal Interpreter Improved Targeting Computer > --- WEAPON ----------- Spread Laser Spread Laser > --- INVENTORY -------- Ion Engine Light Ion Engine Aluminum Leg Aluminum Leg Terrain Scanner Small Laser Minigun Grenade Launcher [Rating: 21] Favorites ----------- Power Ion Engine Engine Ion Engine Power Core Nuclear Core Propulsion Aluminum Leg Leg Aluminum Leg Flight Unit Cesium-ion Thruster Utility Small Storage Unit Device Seismic Detector Storage Small Storage Unit Processor Improved Targeting Computer Weapon Spread Laser Energy Gun Spread Laser Build | -11 -10 -9 ------- Run | Scr Mat Mat Slots Evolved 2 | . . 2 Power 1 | . . 1 Propulsion . | . . . Utility 1 | . . 1 Weapon . | . . . Parts Attached 24 | 8 3 13 Power 7 | 1 . 6 Engine 5 | 1 . 4 Core 2 | . . 2 Reactor . | . . . Propulsion 7 | 2 . 5 Treads . | . . . Leg 5 | 2 . 3 Wheel . | . . . Hover . | . . . Flight 2 | . . 2 Utility 5 | 2 1 2 Device 2 | 1 . 1 Storage 1 | 1 . . Processor 2 | . 1 1 Hackware . | . . . Protection . | . . . Artifact . | . . . Weapon 5 | 3 2 . Energy Gun 5 | 3 2 . Energy Cannon . | . . . Ballistic Gun . | . . . Ballistic Cannon . | . . . Launcher . | . . . Special Weapon . | . . . Impact Weapon . | . . . Slashing Weapon . | . . . Piercing Weapon . | . . . Special Melee Weapon . | . . . Unidentified Prototypes . | . . . Parts Lost 2 | . 1 1 Power . | . . . Propulsion . | . . . Utility 2 | . 1 1 Weapon . | . . . Highest Loss Streak 1 | . 1 1 To Critical Strikes . | . . . Average Slot Usage (%) 99 | . 99 100 Engine 16 | . 14 18 Core 1 | . . 3 Leg 24 | . 28 21 Device 3 | . 5 . Storage 12 | . 14 11 Processor 14 | . 8 21 Energy Gun 25 | . 28 22 Naked Turns . | . . . Heaviest Build 25 | 13 16 25 Greatest Support 20 | 20 20 20 Greatest Overweight (x) 4 | 2 . 4 Average Overweight (x) . | . . . Largest Inventory Capacity 8 | 8 8 8 Average Capacity 7 | 7 8 8 Most Carried 8 | 2 8 8 Average Carried 6 | . 6 7 Final Capacity 8 | 8 8 8 Final Carried 8 | 2 8 7 Class Distribution -------------------- 100% | Mutant Dominant Class ---------------- Mutant | -10/Materials Mutant | -9/Materials Resources | -11 -10 -9 ----------- Run | Scr Mat Mat Matter Collected 377 | 238 72 67 Remotely . | . . . Salvage Created 467 | 23 231 213 Parts 31 | 5 13 13 Haulers Intercepted . | . . . Recyclers Shooed . | . . . Parts Field Recycled . | . . . Retrieved Matter . | . . . Parts Self-Destructed . | . . . Prevented . | . . . Kills | -11 -10 -9 ------- Run | Scr Mat Mat Combat Hostiles Destroyed 13 | . 7 6 Guns 13 | . 7 6 Classes Destroyed 4 | 1 2 1 Tunneler 1 | 1 . . Swarmer 2 | . 2 . Grunt 10 | . 5 5 Brawler 1 | . . 1 Best Kill Streak 3 | 1 2 3 Combat Bots Only 3 | . 2 3 Max Kills in Single Turn 1 | 1 1 1 Gunslinging . | . . . Exploded . | . . . Melee . | . . . Uniques/NPCs Destroyed . | . . . Combat | -11 -10 -9 -------- Run | Scr Mat Mat Damage Taken 421 | . 307 114 Core 77 | . 59 18 Absorbed by Shields . | . . . Core Remaining (%) 88 | 100 76 . Volleys Fired 32 | 2 21 9 Largest 2 | 2 2 2 Hottest 130 | 80 130 130 Shots Fired 64 | 4 42 18 Gun 64 | 4 42 18 Cannon . | . . . Launcher . | . . . Special . | . . . Kinetic . | . . . Thermal 64 | 4 42 18 Explosive . | . . . Electromagnetic . | . . . Robot Hit Streak 12 | 1 9 12 Robot Miss Streak 5 | 1 5 4 Penetration Max . | . . . Secondary Targets . | . . . Shots Hit Robots 54 | 2 36 16 Core Hits 43 | 1 17 25 Critical Kills . | . . . Critical Parts Destroyed . | . . . Critical Strikes . | . . . Melee Attacks . | . . . Impact . | . . . Slashing . | . . . Piercing . | . . . Sneak Attacks . | . . . Combat Hostiles . | . . . Follow-up Attacks . | . . . Damage Inflicted 670 | 22 398 250 Guns 670 | 22 398 250 Cannons . | . . . Explosions . | . . . Melee . | . . . Ramming . | . . . Kinetic . | . . . Thermal 670 | 22 398 250 Explosive . | . . . Electromagnetic . | . . . Impact . | . . . Slashing . | . . . Piercing . | . . . Highest Corruption 5 | . . 5 Average Corruption 5 | . . 5 Corruption Purged . | . . . Corruption Blocked . | . . . Effects 1 | . . 1 Energy Discharges 1 | . . 1 Overload Shots . | . . . Overflow Damage . | . . . Projectiles . | . . . Explosions . | . . . Melee . | . . . Knockbacks . | . . . Impact . | . . . Kinetic . | . . . Secondary . | . . . Self-Inflicted Damage . | . . . Shots . | . . . Rammed . | . . . Targets Rammed . | . . . Kicked . | . . . Crushed . | . . . Highest Temperature 401 | 36 225 401 Average Temperature 113 | 20 94 161 Received Heat Transfer 177 | . 141 36 Effects 2 | . . 2 Energy Bleed 2 | . . 2 Siege Activations . | . . . Robots Corrupted . | . . . Combat Hostiles . | . . . Parts Fried . | . . . Impact Corruptions . | . . . Robots Melted . | . . . Combat Hostiles . | . . . Parts Melted 2 | . 2 . Heat Transferred 1225 | 50 870 305 Parts Sabotaged . | . . . Parts Stolen . | . . . Parts Stripped . | . . . Power Chain Reactions . | . . . Missiles Intercepted . | . . . Alert | -11 -10 -9 ------- Run | Scr Mat Mat Peak Influence 287 | 5 208 287 Initial 87 | . 3 87 Average 118 | . 112 159 Maximum Alert Level 1 | . 1 1 Low Security (%) 78 | 100 76 74 Level 1 21 | . 23 25 Level 2 . | . . . Level 3 . | . . . Level 4 . | . . . Level 5 . | . . . High Security . | . . . Max Security . | . . . Squads Dispatched 3 | . 1 2 Investigation . | . . . Extermination . | . . . Reinforcement 3 | . 1 2 Assault . | . . . Garrison . | . . . Intercept . | . . . Searches Triggered . | . . . Construction Impeded . | . . . Haulers Reinforced . | . . . Active Scanning Responses . | . . . Cargo Convoy Interrupts . | . . . Stealth | -11 -10 -9 --------- Run | Scr Mat Mat Distress Signals 1 | . 1 . Communications Jammed . | . . . Distress Signals . | . . . Times Spotted 22 | . 9 13 Peak Tracking Total 4 | . 3 4 Tactical Retreats 2 | . 2 . Traps | -11 -10 -9 ------- Run | Scr Mat Mat Traps Triggered 1 | . 1 . Indirectly . | . . . Trap Hack Attempts . | . . . Triggered . | . . . Disarmed . | . . . Reprogrammed . | . . . Reused . | . . . Traps Extracted . | . . . Installed . | . . . Triggered . | . . . Machines | -11 -10 -9 ---------- Run | Scr Mat Mat Machines Disabled . | . . . Max in Single Turn . | . . . Machines Sabotaged . | . . . Garrisons Compromised . | . . . Overloaded Fab Kills . | . . . Hacking | -11 -10 -9 --------- Run | Scr Mat Mat Machines Accessed . | . . . Terminals . | . . . Fabricators . | . . . Repair Stations . | . . . Recycling Units . | . . . Scanalyzers . | . . . Garrison Access . | . . . Total Hacks . | . . . Successful . | . . . Failed . | . . . Catastrophic . | . . . Database Lockouts . | . . . Manual . | . . . Terminals . | . . . Fabricators . | . . . Repair Stations . | . . . Recycling Units . | . . . Scanalyzers . | . . . Garrison Access . | . . . Terminal Hacks . | . . . Fabricator Hacks . | . . . Repair Station Hacks . | . . . Recycling Unit Hacks . | . . . Scanalyzer . | . . . Garrison Access Hacks . | . . . Unauthorized Hacks . | . . . Terminals . | . . . Fabricators . | . . . Repair Stations . | . . . Recycling Units . | . . . Scanalyzers . | . . . Garrison Access . | . . . Data Cores Recovered . | . . . Used . | . . . Hacking Detections . | . . . Full Trace Events . | . . . Feedback Events . | . . . Feedback Blocked . | . . . Robot Schematics Acquired . | . . . Robots Built . | . . . Authchips . | . . . Time . | . . . Total Robot Build Rating . | . . . Part Schematics Acquired . | . . . Parts Built . | . . . Authchips . | . . . Time . | . . . Total Part Build Rating . | . . . Parts Repaired . | . . . Time . | . . . Parts Recycled . | . . . Recycled Matter . | . . . Retrieved Matter . | . . . Retrieved Components . | . . . Parts Scanalyzed . | . . . Part Schematics Acquired . | . . . Parts Damaged . | . . . Bothacking | -11 -10 -9 ------------ Run | Scr Mat Mat Used RIF Installer . | . . . Robots Hacked . | . . . Non-combat . | . . . Combat . | . . . Robot Hacks Applied . | . . . Relay Couplers Released . | . . . Fabnet Peak Effective % . | . . . Robots Rewired . | . . . Allies Hacked . | . . . Hacks Repelled . | . . . Allies | -11 -10 -9 -------- Run | Scr Mat Mat Total Allies . | . . . Largest Group . | . . . Highest-Rated Group . | . . . Highest-Rated Ally . | . . . Total Orders . | . . . Ally Attacks . | . . . Total Damage . | . . . Kills . | . . . Allies Corrupted . | . . . Allies Melted . | . . . Intel | -11 -10 -9 ------- Run | Scr Mat Mat Robot Analysis Total . | . . . Derelict Logs Recovered . | . . . Drone Launches . | . . . Drone Recoveries . | . . . Exploration | -11 -10 -9 ------------- Run | Scr Mat Mat Turns Passed 827 | 97 399 331 Spaces Moved 473 | 69 238 166 Core 20 | 20 . . Treads . | . . . Legs 451 | 49 238 164 Wheels . | . . . Hover . | . . . Flight 2 | . . 2 Fastest Speed 50 | 50 120 120 Average Speed 126 | 106 120 143 Slowest Speed 365 | 150 120 365 Overloaded Moves . | . . . Propulsion Burnouts . | . . . Robots Hopped . | . . . Cave-ins Triggered . | . . . Exploration Rate (%) 21 | 4 47 12 Regions Visited 2 Branch Regions . Pre-discovered Areas . | . . . Known Exits Taken . | . . . Unknown Exits Taken 2 | 1 1 . Scrap Searched . | . . . Spaces Dug . | . . . Terrain Destroyed . | . . . Melee . | . . . Projectile . | . . . AOE . | . . . Terrain Rammed . | . . . Walls Destroyed . | . . . Machines Disabled . | . . . Actions | -11 -10 -9 --------- Run | Scr Mat Mat Total 638 | 85 309 244 Wait 79 | 4 39 36 Move 471 | 68 237 166 Hop . | . . . Pick Up 14 | 2 7 5 Fast Attach 15 | 7 . 8 Attach 5 | 1 1 3 Detach 3 | 1 . 2 Swap 4 | . 2 2 Drop 15 | . 2 13 Fire 32 | 2 21 9 Melee . | . . . Ram . | . . . Kick . | . . . Crush . | . . . Escape Stasis . | . . . Rewire . | . . . Trap . | . . . Miscellaneous . | . . . Route ------- -11/Scrapyard -10/Materials -9/Materials History --------- Turn | Location | Event 10 | -11/Scrapyard | Discovered new exit (range 15) 98 | -11/Scrapyard | Entered Materials 301 | -10/Materials | Build established: Mutant 439 | -10/Materials | Discovered new exit (range 13) 497 | -10/Materials | Entered another Materials area 497 | -9/Materials | Evolved 2 slots: Power x1, Utility x1 828 | -9/Materials | Self-destructed Last Messages --------------- 00711_ Dropped Aluminum Leg. 00712_ Acquired Cesium-ion Thruster. 00717_ Dropped Aluminum Leg. 00718_ Acquired Cesium-ion Thruster. 00721_ Dropped Cesium-ion Thruster. 00722_ Acquired Aluminum Leg. 00731_ Dropped Cesium-ion Thruster. 00731_ Acquired Aluminum Leg. 00744_ G-34 Mercenary destroyed. 00756_ R-06 Scavenger collects Heat Sink. 00781_ R-06 Scavenger collects Cesium-ion Thruster. 00792_ R-06 Scavenger collects Nuclear Core. 00811_ G-34 Mercenary destroyed. 00816_ Signal Interpreter destroyed. 00816_ System corrupted by crushing effect (+5). 00821_ B-36 Bruiser destroyed. 00822_ Overheating: Energy bleed (-22). 00826_ Acquired 47 matter. 00828_ Overheating: Energy bleed (-32). 00828_ System corrupted: Energy discharge (-56). Map ----- +----------------------------------------------------+ | ?????????????????????????????????????????????????? | | ?????????????????????????????????????????????????? | | ?????????????????????????????????????????????????? | | ?????????????????????????????????????????????????? | | ????????????????????????? ?????????????????????? | | ????????????????????????? ?????????????????????? | | ????????????????????????? ?????????????????????? | | ????????????????????????? ?????????????????????? | | ????????????????????????? ?????????????????????? | | ????????????????????????" ?????????????????????? | | ????????????????????????" ??????????????????????? | | ????????????????????????" ??????????????????????? | | ????????????????????????" ??????????????????????? | | ????????????????????????"% ??????????????????????? | | ????????????????? ?????? ??????????????????????? | | ???????????????????????? ??????????????????????? | | ????????????????????????#s#??????????????????????? | | ????????????????????????#a#??????????????????????? | | ????????????????????????#s#??????????????????????? | | ????????????????????????# #??????????????????????? | | ?????????????????#????#?# #??????????????????????? | | ????????????????????????#!#????########??????????? | | ????????????????????????#=#????#**!![[#??????????? | | ??????????????????#######%###??# !![ #??????????? | | ??????????????????#// *%!*=#??# [#??????????? | | ??????????????????#// r@ #### ####??????????? | | ??????????????????#= wT #?????????????? | | ???????########???#= ###### #?????????????? | | ???????# #???#* # # #?????????????? | | ???????# """ #???#* ### ### + #?????????????? | | ???????# """ #?#######?#r#?# # #?????????????? | | ???????# """ #?# ???? #?# ??# #?????????????? | | ???????# #?# ??? #?#????# #?????????????? | | ???????# #?# """ #??????# #?????????????? | | ???????####+###?# """"" ######## #?????????????? | | ??????????# #???# """"" / #?????????????? | | ?????###### #???# """"" ##=#######?????????????? | | ?????# # #???? """ ?#*##########??????????? | | ?????# # #?????? ? ?# += #??????????? | | ?????# # #########+######%#= #??????????? | | ?????# # %!# #??????????? | | ?????# + [# """ #??????????? | | ?????# ] #### |] T + """ #??????????? | | ?????#] #??# |] # """ #??????????? | | ?????# #??# #### # """ #??????????? | | ?????# #??#+#??## # """ ???????????? | | ?????######?# ??# # ????????????? | | ????????????# T + ########????????????? | | ????????????# # #???????????????????? | | ????????????# # #### ##???????????????????? | +----------------------------------------------------+ Best States ------------- Heat Dissipation 28 Energy Generation 23 Energy Capacity 380 Matter Stores 300 Matter Capacity 300 Sight Range 16 Terrain Scan Range 14 Terrain Scan Density 10 Evasion (%) 55 Targeting Accuracy 6 Item Schematics ----------------- None Robot Schematics ------------------ None Fabricated ------------ Nothing Alien Tech Used ----------------- None Achievements -------------- None Challenges ------------ None Game ------ Seed WarpFrostNukerbomber Manual? 0 Play Time 00:17:21 Cumulative 30.6 hours Start 2022.05.26 @ 22:21:46 End 2022.05.26 @ 23:02:42 Sessions 1 Manual Loads 0 Difficulty Rogue Special Mode None Game No. 53 Rogue 38 Adventurer 0 Explorer 15 Win Type - Total 0 Types 0/0/0/0/0/0/0/0/0 Lore% 19 Gallery% 29 Achievement% 22 Wizard Run 0 Options --------- ASCII 0 Keyboard 0 Movement Vi Keybinds 0 Fullscreen 2 Font 24/Terminus Map View 76x50 Tactical HUD 1 Map Filters NONE Filters NONE Steam 1 RUN: e9a75cae-f91d-40a2-8951-c35cf3d3f410